fUSD/lending_fUSD_20260405
["ID","MTS","AMOUNT","RATE_DAILY","PERIOD"]
[419851487,1775419427868,-651.63584975,0.00046841,120]
[419851488,1775419427894,-288.63432125,0.00046841,30]
[419851489,1775419427922,-1948.06968349,0.00046841,30]
[419851490,1775419427947,-711.78327279,0.00046841,120]
[419851491,1775419427972,-284.18479459,0.00046841,120]
[419851492,1775419427998,-224.62184811,0.00046841,60]
[419851493,1775419428025,-1057.75532651,0.00046841,120]
[419851494,1775419428051,-5168.5642692,0.00046841,60]
[419851495,1775419428075,-2059.96804795,0.00046841,120]
[419851496,1775419428098,-1091.99036368,0.00046841,120]
[419851497,1775419428122,-526.54860839,0.00046841,120]
[419851498,1775419428146,-183.84336022,0.00046841,120]
[419851499,1775419428171,-1447.55302094,0.00046841,120]
[419851500,1775419428197,-1781.42560663,0.00046841,30]
[419851501,1775419428222,-1125.58186394,0.00046841,30]
[419851502,1775419428249,-1011.04197693,0.00046841,49]
[419851503,1775419428274,-1132.46451789,0.00046841,30]
[419851504,1775419428301,-400.42475343,0.00046841,120]
[419851505,1775419428598,-200.27002142,0.00046841,120]
[419851506,1775419428624,-705.50477304,0.00046841,120]
[419851507,1775419428650,-2351.23071022,0.00046841,120]
[419851508,1775419428675,-2149.18216963,0.00046841,30]
[419851509,1775419428699,-158.34894133,0.00046841,120]
[419851510,1775419428723,-1288.0768114,0.00046841,30]
[419851511,1775419428750,-1963.65699214,0.00046841,30]
[419851512,1775419428775,-279.42033206,0.00046841,120]
[419851513,1775419428799,-490.48628197,0.00046841,120]
[419851514,1775419428824,-1223.29913108,0.00046841,120]
[419851515,1775419428851,-1239.35135791,0.00046841,120]
[419851516,1775419428875,-486.42899304,0.00046841,120]
[419851517,1775419428899,-4254.40799869,0.00046841,30]
[419851518,1775419428928,-500.0,0.00046841,120]
[419851519,1775419428953,-502.86606628,0.00046841,30]
[419851520,1775419428976,-174.43794517,0.00046841,30]
[419851521,1775419429002,-330.88091105,0.00046841,120]
[419851522,1775419429028,-7114.45615444,0.00046841,60]
[419851523,1775419429054,-159.51624573,0.00046841,120]
[419851524,1775419429079,-270.82614779,0.00046841,120]
[419851525,1775419429103,-202.79678111,0.00046841,120]
[419851526,1775419429130,-490.17775957,0.00046841,120]
[419851527,1775419429156,-233.72098565,0.00046841,120]
[419851528,1775419429183,-158.51294641,0.00046841,120]
[419851529,1775419429209,-2132.42959639,0.00046841,120]
[419851530,1775419429234,-1995.20310475,0.00046841,30]
[419851531,1775419429260,-545.23788468,0.00046841,60]
[419851532,1775419429288,-1928.3796789,0.00046841,120]
[419851533,1775419429315,-564.31075966,0.00046841,60]
[419851534,1775419429344,-1023.44577367,0.00046841,120]
[419851535,1775419429368,-3862.4996638,0.00046841,90]
[419851536,1775419429394,-601.35169425,0.00046841,120]
[419851537,1775419429422,-492.10833624,0.00046841,90]
[419851538,1775419429447,-835.32966689,0.00046841,30]
[419851539,1775419429472,-1366.93057304,0.00046841,120]
[419851540,1775419429498,-205.69008557,0.00046841,120]
[419851541,1775419429523,-510.38862852,0.00046841,120]
[419851542,1775419429549,-163.65132655,0.00046841,30]
[419851543,1775419429574,-500.57188406,0.00046841,120]
[419851544,1775419429600,-549.0,0.00046841,30]
[419851545,1775419429625,-1003.73384857,0.00046841,120]
[419851546,1775419429650,-1773.01204182,0.00046841,120]
[419851547,1775419429675,-1003.74817602,0.00046841,120]
[419851548,1775419429700,-40000.0,0.00046841,120]
[419851549,1775419429725,-193.0878212,0.00046841,120]
[419851550,1775419429752,-243.45779442,0.00046841,30]
[419851551,1775419429776,-168.86783779,0.00046841,120]
[419851552,1775419429802,-215.70229416,0.00046841,120]
[419851553,1775419429828,-1741.25202598,0.00046841,120]
[419851554,1775419429853,-325.86055893,0.00046841,60]
[419851555,1775419429878,-1753.61801738,0.00046841,120]
[419851556,1775419429902,-7041.4982882,0.00046841,120]
[419851557,1775419429927,-677.96002816,0.00046841,120]
[419851558,1775419429952,-677.96002816,0.00046841,120]
[419851559,1775419429976,-677.96002816,0.00046841,120]
[419851560,1775419430000,-677.96002816,0.00046841,120]
[419851561,1775419430026,-677.96002816,0.00046841,120]
[419851562,1775419430051,-677.96002816,0.00046841,120]
[419851563,1775419430075,-677.96002816,0.00046841,120]
[419851564,1775419430099,-677.96002816,0.00046841,120]
[419851565,1775419430125,-677.96002816,0.00046841,120]
[419851566,1775419430150,-677.96002816,0.00046841,120]
[419851567,1775419430176,-677.96002816,0.00046841,120]
[419851568,1775419430200,-677.96002816,0.00046841,120]
[419851569,1775419430227,-677.96002816,0.00046841,120]
[419851570,1775419430255,-677.96002816,0.00046841,120]
[419851571,1775419430281,-677.96002816,0.00046841,120]
[419851572,1775419430308,-677.96002816,0.00046841,120]
[419851573,1775419430337,-677.96002815,0.00046841,120]
[419851574,1775419430362,-677.96002815,0.00046841,120]
[419851575,1775419430387,-677.96002815,0.00046841,120]
[419851576,1775419430412,-677.96002815,0.00046841,120]
[419851577,1775419430436,-529.29819615,0.00046841,120]
[419851578,1775419430462,-40806.98326191,0.00046841,120]
[419851579,1775419430487,-459.0,0.00046841,120]
[419851580,1775419430510,-262.835719,0.00046841,120]
[419851581,1775419430535,-9905.62500559,0.00046841,120]
[419851582,1775419430560,-5000.0,0.00046841,120]
[419851583,1775419430587,-243.0,0.00046841,120]
[419851584,1775419430612,-1047.26234394,0.00046841,120]
[419851585,1775419430638,-150.98792055,0.00046841,120]
[419851586,1775419430669,-3845.16635052,0.00046841,30]
[419851587,1775419430695,-219.69950911,0.00046841,90]
[419851588,1775419430721,-3602.47754556,0.00046841,120]
[419851589,1775419430748,-3999999.0,0.00046841,120]
[419851590,1775419430773,-502.05264973,0.00046841,120]
[419851591,1775419430799,-1367.40069732,0.00046841,60]
[419851592,1775419430826,-2077.09877461,0.00046841,120]
[419851593,1775419430851,-1980.77819715,0.00046841,30]
[419851594,1775419430876,-559.1113866,0.00046841,120]
[419851595,1775419430900,-2063.97838209,0.00046841,120]
[419851596,1775419430925,-2980.80015305,0.00046841,30]
[419851597,1775419430949,-5301.2027354,0.00046841,60]
[419851598,1775419430974,-790.28363437,0.00046841,30]
[419851599,1775419431264,-3366.4365665,0.00046841,30]
[419851600,1775419431294,-487.37235967,0.00046841,30]
[419851601,1775419431324,-1307.01294439,0.00046841,120]
[419851602,1775419431350,-1446.56043842,0.00046841,120]
[419851603,1775419431377,-1397.9831123,0.00046841,120]
[419851604,1775419431403,-1943.42583762,0.00046841,120]
[419851605,1775419431427,-2968.45121112,0.00046841,120]
[419851606,1775419431452,-635.00490308,0.00046841,120]
[419851607,1775419431479,-1262.31163191,0.00046841,120]
[419851608,1775419431503,-2120.1818463,0.00046841,120]
[419851609,1775419431527,-2784.44406606,0.00046841,120]
[419851610,1775419431557,-4571.55469999,0.00046841,120]
[419851611,1775419431584,-2744.36296465,0.00046841,120]
[419851612,1775419431610,-1756.84424,0.00046841,120]
[419851613,1775419431636,-3308.79370826,0.00046841,120]
[419851614,1775419431662,-3506.67507903,0.00046841,120]
[419851615,1775419431689,-3384.61053665,0.00046841,30]
[419851616,1775419431714,-1305.34967548,0.00046841,120]
[419851617,1775419431738,-1729.80014448,0.00046841,30]
[419851618,1775419431764,-1561.45593201,0.00046841,60]
[419851619,1775419431790,-2000.0,0.00046841,120]
[419851620,1775419431815,-2000.0,0.00046841,120]
[419851621,1775419431842,-2000.0,0.00046841,120]
[419851622,1775419431868,-2000.0,0.00046841,120]
[419851623,1775419431896,-500.0,0.00046841,120]
[419851624,1775419431923,-2000.0,0.00046841,120]
[419851625,1775419431947,-500.0,0.00046841,120]
[419851626,1775419431972,-500.0,0.00046841,120]
[419851627,1775419431996,-500.0,0.00046841,120]
[419851628,1775419432022,-500.0,0.00046841,120]
[419851629,1775419432047,-500.0,0.00046841,120]
[419851630,1775419432072,-500.0,0.00046841,120]
[419851631,1775419432096,-500.0,0.00046841,120]
[419851632,1775419432122,-500.0,0.00046841,120]
[419851633,1775419432147,-500.0,0.00046841,120]
[419851634,1775419432172,-500.0,0.00046841,120]
[419851635,1775419432197,-500.0,0.00046841,120]
[419851636,1775419432224,-500.0,0.00046841,120]
[419851637,1775419432254,-500.0,0.00046841,120]
[419851638,1775419432279,-500.0,0.00046841,120]
[419851639,1775419432304,-500.0,0.00046841,120]
[419851640,1775419432328,-2000.0,0.00046841,120]
[419851641,1775419432353,-577.62186208,0.00046841,120]
[419851642,1775419432379,-2000.0,0.00046841,120]
[419851643,1775419432403,-2417.51272967,0.00046841,120]
[419851644,1775419432429,-2000.0,0.00046841,120]
[419851645,1775419432454,-2000.0,0.00046841,120]
[419851646,1775419432482,-612.47483078,0.00046841,120]
[419851647,1775419432509,-2032.10543598,0.00046841,120]
[419851648,1775419432535,-587.09202023,0.00046841,120]
[419851649,1775419432563,-635.32459527,0.00046841,120]
[419851650,1775419432589,-1000.0,0.00046841,31]
[419851651,1775419432615,-1450.25465096,0.00046841,60]
[419851652,1775419432640,-1000.0,0.00046841,120]
[419851653,1775419432665,-1000.0,0.00046841,120]
[419851654,1775419432691,-1000.0,0.00046841,120]
[419851655,1775419432716,-1000.0,0.00046841,120]
[419851656,1775419432742,-1000.0,0.00046841,120]
[419851657,1775419432766,-1000.0,0.00046841,120]
[419851658,1775419432792,-1000.0,0.00046841,120]
[419851659,1775419432816,-1524.2783533,0.00046841,120]
[419851660,1775419432840,-1931.0,0.00046841,120]
[419851661,1775419432864,-2295.19231683,0.00046841,120]
[419851662,1775419432889,-1529.45266967,0.00046841,120]
[419851663,1775419432915,-1000.0,0.00046841,120]
[419851664,1775419432938,-999.56,0.00046841,120]
[419851665,1775419432964,-307.6333749,0.00046841,120]
[419851666,1775419432992,-1463.17230617,0.00046841,120]
[419851667,1775419433020,-1043.78709075,0.00046841,30]
[419851668,1775419433048,-975.39077313,0.00046841,30]
[419851669,1775419433074,-1510.73887592,0.00046841,120]
[419851670,1775419433101,-594.91219927,0.00046841,120]
[419851671,1775419433130,-1006.26399354,0.00046841,120]
[419851672,1775419433156,-1655.1151249,0.00046841,120]
[419851673,1775419433181,-2000.0,0.00046841,120]
[419851674,1775419433207,-2000.0,0.00046841,120]
[419851675,1775419433234,-2000.0,0.00046841,120]
[419851676,1775419433260,-2000.0,0.00046841,120]
[419851677,1775419433289,-584.0,0.00046841,120]
[419851678,1775419433318,-2000.0,0.00046841,120]
[419851679,1775419433343,-2383.85176314,0.00046841,120]
[419851680,1775419433369,-169.84409338,0.00046841,30]
[419851681,1775419433394,-3248.50107581,0.00046841,120]
[419851682,1775419433419,-3000.0,0.00046841,60]
[419851683,1775419433444,-6535.66375329,0.00046841,30]
[419851684,1775419433469,-2802.11996719,0.00046841,120]
[419851685,1775419433494,-2000.0,0.00046841,120]
[419851686,1775419433520,-2000.0,0.00046841,120]
[419851687,1775419433546,-2000.0,0.00046841,120]
[419851688,1775419433573,-2000.0,0.00046841,120]
[419851689,1775419433598,-2000.0,0.00046841,120]
[419851690,1775419433624,-2000.0,0.00046841,120]
[419851691,1775419433650,-2000.0,0.00046841,120]
[419851692,1775419433678,-2000.0,0.00046841,120]
[419851693,1775419433937,-2000.0,0.00046841,120]
[419851694,1775419433999,-2000.0,0.00046841,120]
[419851695,1775419434027,-2000.0,0.00046841,120]
[419851696,1775419434053,-2000.0,0.00046841,120]
[419851697,1775419434079,-2000.0,0.00046841,120]
[419851698,1775419434105,-2000.0,0.00046841,120]
[419851699,1775419434133,-2000.0,0.00046841,120]
[419851700,1775419434160,-2000.0,0.00046841,120]
[419851701,1775419434185,-2000.0,0.00046841,120]
[419851702,1775419434212,-2000.0,0.00046841,120]
[419851703,1775419434238,-2000.0,0.00046841,120]
[419851704,1775419434265,-2000.0,0.00046841,120]
[419851705,1775419434291,-2000.0,0.00046841,120]
[419851706,1775419434319,-2000.0,0.00046841,120]
[419851707,1775419434346,-2000.0,0.00046841,120]
[419851708,1775419434372,-2000.0,0.00046841,120]
[419851709,1775419434399,-2000.0,0.00046841,120]
[419851710,1775419434425,-2000.0,0.00046841,120]
[419851711,1775419434451,-2000.0,0.00046841,120]
[419851712,1775419434478,-2000.0,0.00046841,120]
[419851713,1775419434504,-2000.0,0.00046841,120]
[419851714,1775419434530,-2000.0,0.00046841,120]
[419851715,1775419434556,-2000.0,0.00046841,120]
[419851716,1775419434582,-2000.0,0.00046841,120]
[419851717,1775419434608,-2000.0,0.00046841,120]
[419851718,1775419434635,-2000.0,0.00046841,120]
[419851719,1775419434662,-2000.0,0.00046841,120]
[419851720,1775419434693,-2000.0,0.00046841,120]
[419851721,1775419434719,-2000.0,0.00046841,120]
[419851722,1775419434744,-2000.0,0.00046841,120]
[419851723,1775419434770,-2000.0,0.00046841,120]
[419851724,1775419434797,-2000.0,0.00046841,120]
[419851725,1775419434822,-2000.0,0.00046841,120]
[419851726,1775419434848,-2000.0,0.00046841,120]
[419851727,1775419434873,-2000.0,0.00046841,120]
[419851728,1775419434898,-2000.0,0.00046841,120]
[419851729,1775419434924,-1004.92,0.00046841,120]
[419851730,1775419434951,-1000.0,0.00046841,120]
[419851731,1775419434977,-3400.60054034,0.00046841,120]
[419851732,1775419435007,-18345.43248227,0.00046841,120]
[419851733,1775419442799,-185970.52751773,0.00046841,120]
[419851734,1775419442825,-3000.0,0.00046841,30]
[419851735,1775419442851,-31555.91814798,0.00046841,45]
[419851736,1775419442883,-4429.85344121,0.00046841,90]
[419851737,1775419442911,-682.61264841,0.00046841,120]
[419851738,1775419442939,-883.65312641,0.00046841,30]
[419851739,1775419442966,-2480.06866849,0.00046841,91]
[419851740,1775419442994,-953.56988243,0.00046841,30]
[419851741,1775419443021,-1554.85036091,0.00046841,120]
[419851742,1775419443580,-804.50664748,0.00046841,30]
[419851743,1775419443608,-2959.90476844,0.00046841,120]
[419851744,1775419443636,-2902.78832673,0.00046841,120]
[419851745,1775419443662,-2895.88348492,0.00046841,30]
[419851746,1775419443688,-2921.78673281,0.00046841,30]
[419851747,1775419443717,-2669.2070972,0.00046841,30]
[419851748,1775419443744,-1415.96102179,0.00046841,30]
[419851749,1775419443771,-1925.53998065,0.00046841,30]
[419851750,1775419443799,-1400.899998,0.00046841,120]
[419851751,1775419443824,-914.10743837,0.00046841,30]
[419851752,1775419443851,-1032.17008648,0.00046841,120]
[419851753,1775419443878,-1120.99412936,0.00046841,120]
[419851754,1775419443904,-933.80509833,0.00046841,30]
[419851755,1775419443931,-942.93143649,0.00046841,30]
[419851756,1775419443957,-1642.22817359,0.00046841,30]
[419851757,1775419443983,-5893.38014662,0.00046841,120]
[419851758,1775419444009,-3067.26170689,0.00046841,120]
[419851759,1775419444036,-2299.08217812,0.00046841,120]
[419851760,1775419444063,-1238.90565603,0.00046841,30]
[419851761,1775419444089,-4814.8252214,0.00046841,120]
[419851762,1775419444116,-2887.62127052,0.00046841,120]
[419851763,1775419444143,-2924.94620818,0.00046841,62]
[419851764,1775419444170,-785.94776622,0.00046841,120]
[419851765,1775419444197,-979.72608798,0.00046841,30]
[419851766,1775419444223,-3391.76428752,0.00046841,120]
[419851767,1775419444249,-720.21971679,0.00046841,120]
[419851768,1775419444275,-1288.82975099,0.00046841,120]
[419851769,1775419444300,-2395.90083947,0.00046841,120]
[419851770,1775419444327,-871.51404829,0.00046841,120]
[419851771,1775419444352,-3501.94046117,0.00046841,30]
[419851772,1775419444379,-1499.92324685,0.00046841,120]
[419851773,1775419444405,-589.02083471,0.00046841,30]
[419851774,1775419444432,-2476.05550104,0.00046841,120]
[419851775,1775419444459,-997.0,0.00046841,30]
[419851776,1775419444486,-2408.65907871,0.00046841,120]
[419851777,1775419444512,-3058.13173491,0.00046841,120]
[419851778,1775419444539,-1040.12851455,0.00046841,30]
[419851779,1775419444565,-1303.18380748,0.00046841,120]
[419851780,1775419444592,-1185.70679754,0.00046841,30]
[419851781,1775419444618,-964.75177798,0.00046841,30]
[419851782,1775419444645,-1412.50191782,0.00046841,120]
[419851783,1775419444672,-3005.56940117,0.00046841,120]
[419851784,1775419444697,-2501.37002386,0.00046841,120]
[419851785,1775419444723,-2311.1838938,0.00046841,120]
[419851786,1775419444750,-616.1892368,0.00046841,120]
[419851787,1775419444777,-1431.60666877,0.00046841,120]
[419851788,1775419444804,-2268.13103747,0.00046841,120]
[419851789,1775419444830,-3012.37045033,0.00046841,120]
[419851790,1775419444856,-1799.02077834,0.00046841,120]
[419851791,1775419444884,-1507.26566975,0.00046841,30]
[419851792,1775419444910,-1215.32199217,0.00046841,30]
[419851793,1775419444935,-2817.17092025,0.00046841,120]
[419851794,1775419444961,-1019.05488406,0.00046841,30]
[419851795,1775419444986,-3127.23802554,0.00046841,120]
[419851796,1775419445012,-1684.78685889,0.00046841,120]
[419851797,1775419445039,-1521.73004575,0.00046841,120]
[419851798,1775419445064,-1958.48422945,0.00046841,120]
[419851799,1775419445093,-1337.79747905,0.00046841,120]
[419851800,1775419445120,-1091.38164825,0.00046841,120]
[419851801,1775419445147,-8755.7199931,0.00046841,30]
[419851802,1775419445174,-706.1653381,0.00046841,120]
[419851803,1775419445200,-2939.74785522,0.00046841,30]
[419851804,1775419445227,-756.0,0.00046841,120]
[419851805,1775419445255,-7703.88528966,0.00046841,120]
[419851806,1775419445283,-853.29978873,0.00046841,120]
[419851807,1775419445310,-563.39675091,0.00046841,120]
[419851808,1775419445337,-1728.46910267,0.00046841,30]
[419851809,1775419445366,-628.76216751,0.00046841,120]
[419851810,1775419445394,-2107.84430742,0.00046841,120]
[419851811,1775419445420,-5367.21799893,0.00046841,120]
[419851812,1775419445448,-2410.09387534,0.00046841,30]
[419851813,1775419445476,-835.16262463,0.00046841,30]
[419851814,1775419445504,-1023.46376921,0.00046841,120]
[419851815,1775419445529,-27900.7806218,0.00046841,120]
[419851816,1775419445556,-1364.61756572,0.00046841,120]
[419851817,1775419445583,-1502.11234423,0.00046841,120]
[419851818,1775419445609,-936.43523579,0.00046841,120]
[419851819,1775419445635,-974.98005691,0.00046841,30]
[419851820,1775419445661,-2004.64565311,0.00046841,120]
[419851821,1775419445686,-4888.27343672,0.00046841,120]
[419851822,1775419445712,-1631.87079563,0.00046841,120]
[419851823,1775419445738,-1236.45349219,0.00046841,120]
[419851824,1775419445763,-1499.88497621,0.00046841,120]
[419851825,1775419445790,-4627.12722053,0.00046841,120]
[419851826,1775419445817,-3672.06204784,0.00046841,120]
[419851827,1775419445845,-2083.98295895,0.00046841,120]
[419851828,1775419445873,-858.06574863,0.00046841,30]
[419851829,1775419445900,-2093.90707478,0.00046841,46]
[419851830,1775419445926,-1069.12587176,0.00046841,120]
[419851831,1775419445952,-1256.39742732,0.00046841,30]
[419851832,1775419445977,-1785.43080169,0.00046841,120]
[419851833,1775419446003,-1856.05333446,0.00046841,120]
[419851834,1775419446031,-3563.47668644,0.00046841,30]
[419851835,1775419446056,-761.53141385,0.00046841,120]
[419851836,1775419446355,-1743.69728693,0.00046841,30]
[419851837,1775419446381,-5589.72860247,0.00046841,120]
[419851838,1775419446407,-1662.0232879,0.00046841,30]
[419851839,1775419446433,-1264.67367131,0.00046841,120]
[419851840,1775419446460,-3262.17466049,0.00046841,30]
[419851841,1775419446485,-1668.19503898,0.00046841,30]
[419851842,1775419446511,-2747.92240001,0.00046841,30]
[419851843,1775419446536,-1814.06327548,0.00046841,120]
[419851844,1775419446562,-3445.97183616,0.00046841,30]
[419851845,1775419446588,-1931.12549646,0.00046841,120]
[419851846,1775419446614,-6180.2477194,0.00046841,120]
[419851847,1775419446640,-89754.05926482,0.00046841,60]
[419851848,1775419446667,-1032.07,0.00046841,120]
[419851849,1775419446695,-10140.0,0.00046841,60]
[419851850,1775419446721,-5000.0,0.00046841,30]
[419851851,1775419446751,-5000.0,0.00046841,30]
[419851852,1775419446778,-5000.0,0.00046841,30]
[419851853,1775419446804,-5000.0,0.00046841,30]
[419851854,1775419446831,-5000.0,0.00046841,30]
[419851855,1775419446856,-5000.0,0.00046841,30]
[419851856,1775419446883,-5000.0,0.00046841,30]
[419851857,1775419446911,-5000.0,0.00046841,30]
[419851858,1775419446938,-5000.0,0.00046841,30]
[419851859,1775419446964,-5000.0,0.00046841,30]
[419851860,1775419446990,-5000.0,0.00046841,30]
[419851861,1775419447016,-5000.0,0.00046841,30]
[419851862,1775419447045,-6520.0,0.00046841,30]
[419851863,1775419447074,-500.0,0.00046841,120]
[419851864,1775419447101,-2353.97669835,0.00046841,120]
[419851865,1775419447129,-50000.0,0.00046841,76]
[419851866,1775419447158,-3769.0,0.00046841,30]
[419851867,1775419447185,-1750.7889225,0.00046841,30]
[419851868,1775419447211,-1658.46378398,0.00046841,120]
[419851869,1775419447239,-4000.0,0.00046841,120]
[419851870,1775419447265,-282.0,0.00046841,120]
[419851871,1775419447291,-500.0,0.00046841,120]
[419851872,1775419447316,-500.0,0.00046841,120]
[419851873,1775419447343,-500.0,0.00046841,120]
[419851874,1775419447368,-500.0,0.00046841,120]
[419851875,1775419447395,-1716548.0,0.00046841,30]
[419851876,1775419447421,-106000.65,0.00046841,30]
[419851877,1775419447447,-28732.86821992,0.00046841,120]
[419851878,1775419447473,-83041.062592,0.00046841,30]
[419851879,1775419447500,-150.55,0.00046841,120]
[419851880,1775419447526,-3800.0,0.00046841,30]
[419851881,1775419447552,-1000.0,0.00046841,30]
[419851882,1775419447577,-660.0,0.00046841,30]
[419851883,1775419447603,-1194.13,0.00046841,120]
[419851884,1775419447629,-1200.0,0.00046841,120]
[419851885,1775419447655,-1270.0,0.00046841,120]
[419851886,1775419447682,-1000.0,0.00046841,120]
[419851887,1775419447710,-1000.0,0.00046841,120]
[419851888,1775419447737,-1000.0,0.00046841,120]
[419851889,1775419447764,-1000.0,0.00046841,120]
[419851890,1775419447792,-1100.0,0.00046841,120]
[419851891,1775419447818,-10357.8051845,0.00046841,120]
[419851892,1775419447845,-50000.0,0.00046841,80]
[419851893,1775419447872,-5000.0,0.00046841,120]
[419851894,1775419447899,-2016.86,0.00046841,120]
[419851895,1775419447925,-39279.6361211,0.00046841,120]
[419851896,1775419447951,-2237.0,0.00046841,120]
[419851897,1775419447977,-30000.0,0.00046841,61]
[419851898,1775419448003,-26323.36284571,0.00046841,31]
[419851899,1775419448028,-4280.44088264,0.00046841,120]
[419851900,1775419448055,-6051.82327771,0.00046841,120]
[419851901,1775419448081,-50489.54,0.00046841,120]
[419851902,1775419448107,-5324.0,0.00046841,60]
[419851903,1775419448132,-4000.0,0.00046841,120]
[419851904,1775419448157,-327.66895161,0.00046841,120]
[419851905,1775419448182,-1644.08814154,0.00046841,120]
[419851906,1775419448207,-2080.42,0.00046841,120]
[419851907,1775419448234,-53506.28362831,0.00046841,30]
[419851908,1775419448260,-8654.1630235,0.00046841,30]
[419851909,1775419448287,-268673.41890707,0.00046841,30]
[419851910,1775419448315,-504.0,0.00046841,30]
[419851911,1775419448342,-1000.0,0.00046841,30]
[419851912,1775419448368,-19685.24026845,0.00046841,30]
[419851913,1775419448394,-11826.93341906,0.00046841,30]
[419851914,1775419448422,-2732807.05894996,0.00046841,30]
[419851916,1775419496928,-6000000.0,0.00046841,30]
[419851918,1775419641366,-300.0,0.00012442,2]
[419851919,1775419641388,-167.06477833,0.00012442,2]
[419851926,1775419833531,-569.13169042,0.00011849,2]
[419851927,1775419833570,-586.7636147,0.00011849,2]
[419851928,1775419833579,-1200.0,0.00012442,2]
[419851929,1775419833589,-300.0,0.00012442,2]
[419851930,1775419833598,-190.86969256,0.00012443,2]
[419851931,1775419833636,-926.24391262,0.00012443,2]
[419851932,1775419833647,-475.20706905,0.00012443,2]
[419851933,1775419833659,-4366.79847194,0.00012443,2]
[419851934,1775419833670,-970.44892758,0.00012443,2]
[419851937,1775419833803,-914.31806116,0.00012443,2]
[419851953,1775419838979,-441.26728895,0.00012443,2]
[419851954,1775419838993,-1822.44657614,0.00012443,2]
[419851955,1775419839003,-2986.49990911,0.00012473,2]
[419851956,1775419839020,-3091.38162167,0.00012473,2]
[419851957,1775419839031,-800.15056761,0.00012473,2]
[419851958,1775419839072,-314.84943239,0.00012473,2]
[419851959,1775419839082,-211.9804,0.00012495,2]
[419851960,1775419839091,-309.90283068,0.000125,2]
[419851961,1775419839101,-150.0,0.00012573,2]
[419851962,1775419839110,-2500.0,0.00012587,2]
[419851963,1775419839119,-5871.363,0.00012594,2]
[419851964,1775419839128,-332.722,0.00012594,2]
[419851965,1775419839139,-150.0,0.00012594,2]
[419851966,1775419839149,-999.83756678,0.00012595,2]
[419851967,1775419839158,-26594.0547215,0.00012595,2]
[419851968,1775419839168,-151.0,0.00012684,2]
[419851969,1775419839177,-151.0,0.00012684,2]
[419851970,1775419839187,-1000.0,0.00012695,2]
[419851971,1775419839196,-7997.74372392,0.00012962,2]
[419851972,1775419839207,-12841.26000002,0.00012962,2]
[419851973,1775419839231,-695.9,0.00012962,2]
[419851974,1775419839243,-2200.0,0.00012962,2]
[419851975,1775419839255,-2859.15099749,0.00012962,2]
[419851976,1775419839264,-64691.17402393,0.00012999,2]
[419851977,1775419839273,-5651.24226969,0.00013,2]
[419851978,1775419839283,-1811.5322899,0.00013,15]
[419851979,1775419839292,-16703.4,0.00013011,2]
[419851980,1775419839302,-250.0,0.00013034,2]
[419851981,1775419839311,-5390.67222516,0.0001305,2]
[419851982,1775419839321,-507.0,0.00013111,2]
[419851983,1775419839331,-1115.0,0.00013129,2]
[419851984,1775419839341,-999.83756672,0.00013146,2]
[419851985,1775419839350,-1007.13,0.00013151,2]
[419851986,1775419839359,-26594.05472143,0.00013329,2]
[419851987,1775419839369,-180.7,0.00013469,2]
[419851988,1775419839378,-1000.0,0.000135,2]
[419851989,1775419839389,-4734.22617628,0.00013598,2]
[419851990,1775419839399,-21120.90276708,0.00013598,2]
[419851991,1775419839408,-420.0,0.00013653,2]
[419851992,1775419839418,-500.0,0.00013673,2]
[419851993,1775419839427,-172.9172142,0.00013686,2]
[419851994,1775419839437,-195.0,0.00013686,2]
[419851995,1775419839447,-1680.0,0.00013687,2]
[419851996,1775419839457,-255.0,0.0001369,2]
[419851997,1775419839467,-999.83756672,0.00013697,2]
[419851998,1775419839477,-26594.05472143,0.00013697,2]
[419851999,1775419839487,-500.0,0.00013698,2]
[419852000,1775419839497,-500.0,0.00013698,2]
[419852001,1775419839506,-500.0,0.00013698,2]
[419852002,1775419839515,-500.0,0.00013698,2]
[419852003,1775419839525,-500.0,0.00013698,2]
[419852004,1775419839534,-500.0,0.00013698,2]
[419852005,1775419839544,-500.0,0.00013698,2]
[419852006,1775419839553,-500.0,0.00013698,2]
[419852007,1775419839563,-500.0,0.00013698,2]
[419852008,1775419839572,-500.0,0.00013698,2]
[419852009,1775419839582,-500.0,0.00013698,2]
[419852010,1775419839591,-500.0,0.00013698,2]
[419852011,1775419839601,-500.0,0.00013698,2]